bitfinex/quotes_SOLUSD_20240708
["timestamp","ask_amount","ask_price","bid_price","bid_amount"]
[1720480394716,20.0,140.67,140.62,9.77]
[1720480394908,29.77,140.68,140.63,9.77]
[1720480395120,12.83198278,140.67,140.63,9.77]
[1720480395301,20.0,140.66,140.63,9.77]
[1720480395502,29.77,140.68,140.63,9.77]
[1720480396941,20.0,140.68,140.64,9.77]
[1720480397107,30.655271,140.69,140.64,9.77]
[1720480398134,20.885271,140.69,140.64,9.77]
[1720480398319,30.655271,140.69,140.64,9.77]
[1720480398718,30.655271,140.69,140.59,0.17]
[1720480398934,30.655271,140.69,140.59,0.34]
[1720480399125,30.655271,140.69,140.64,9.77]
[1720480399328,20.885271,140.69,140.65,9.77]
[1720480399918,27.993071,140.69,140.65,9.77]
[1720480400419,20.885271,140.69,140.65,9.77]
[1720480401314,0.885271,140.69,140.65,9.77]
[1720480402945,20.885271,140.69,140.65,9.77]
[1720480404042,9.77,140.68,140.62,16.0413]
[1720480404340,9.77,140.67,140.62,25.8113]
[1720480404551,9.77,140.67,140.61,6.5351]
[1720480404552,7.1089,140.67,140.61,6.5351]
[1720480404852,9.77,140.66,140.61,9.77]
[1720480405021,16.8795,140.66,140.61,9.77]
[1720480406028,0.17,140.68,140.58,22.2495]
[1720480406245,29.94,140.68,140.63,9.77]
[1720480406420,20.0,140.68,140.63,9.77]
[1720480406614,20.0,140.68,140.64,9.77]
[1720480407259,36.8783,140.68,140.63,9.77]
[1720480407842,36.8783,140.68,140.62,9.77]
[1720480408541,9.77,140.67,140.62,9.77]
[1720480408751,9.77,140.67,140.58,22.2495]
[1720480409046,29.77,140.68,140.62,9.77]
[1720480409548,29.77,140.68,140.63,9.77]
[1720480410942,36.8784,140.68,140.63,9.77]
[1720480412464,20.0,140.68,140.64,9.77]
[1720480412658,0.885271,140.69,140.64,9.77]
[1720480413468,0.885271,140.69,140.65,9.77]
[1720480414361,0.885271,140.69,140.66,9.77]
[1720480415151,0.885271,140.69,140.68,9.77]
[1720480416343,0.885271,140.69,140.68,9.94]
[1720480417869,0.885271,140.69,140.68,9.77]
[1720480418570,0.885271,140.69,140.68,9.94]
[1720480419862,0.885271,140.69,140.68,9.77]
[1720480420368,0.885271,140.69,140.65,0.17]
[1720480420678,0.885271,140.69,140.65,20.0]
[1720480420857,0.885271,140.69,140.67,9.77]
[1720480421239,0.885271,140.69,140.68,9.77]
[1720480422255,0.885271,140.69,140.64,0.17]
[1720480422571,0.385271,140.69,140.64,0.17]
[1720480422771,0.385271,140.69,140.66,9.77]
[1720480423065,0.385271,140.69,140.67,9.77]
[1720480423369,0.385271,140.69,140.62,9.60931415]
[1720480423543,27.493571,140.69,140.62,9.77]
[1720480423744,9.77,140.67,140.62,9.77]
[1720480424554,16.8786,140.68,140.57,253.1]
[1720480424751,9.77,140.67,140.62,9.77]
[1720480425160,9.77,140.67,140.57,253.1]
[1720480425161,9.77,140.68,140.63,9.77]
[1720480425443,27.493271,140.69,140.64,9.77]
[1720480425444,20.385271,140.69,140.64,9.77]
[1720480425663,20.385271,140.69,140.58,0.17]
[1720480425664,20.385271,140.69,140.65,9.77]
[1720480428864,0.385271,140.69,140.68,9.77]
[1720480430556,0.385271,140.69,140.67,9.77]
[1720480430755,0.385271,140.69,140.66,9.77]
[1720480432370,0.385271,140.69,140.68,9.77]
[1720480433057,0.385271,140.69,140.67,9.77]
[1720480433768,0.385271,140.69,140.62,0.17]
[1720480434075,0.385271,140.69,140.66,9.77]
[1720480434378,0.385271,140.69,140.65,9.77]
[1720480434764,0.385271,140.69,140.62,0.34]
[1720480434765,30.155271,140.69,140.61,5.678017]
[1720480434975,30.155271,140.69,140.64,9.77]
[1720480434976,17.263371,140.69,140.64,9.77]
[1720480435158,0.385271,140.69,140.65,9.77]
[1720480435354,20.385271,140.69,140.66,9.77]
[1720480435559,0.385271,140.69,140.66,9.77]
[1720480435754,0.385271,140.69,140.65,9.77]
[1720480436077,20.385271,140.69,140.65,9.77]
[1720480438077,0.385271,140.69,140.65,9.77]
[1720480438479,0.385271,140.69,140.66,9.77]
[1720480440085,0.385271,140.69,140.61,0.17]
[1720480440298,0.385271,140.69,140.65,9.77]
[1720480440466,0.385271,140.69,140.61,0.17]
[1720480440467,7.1083,140.68,140.61,0.17]
[1720480440883,7.1083,140.68,140.64,9.77]
[1720480441717,7.1083,140.68,140.6,26.84337483]
[1720480441876,7.1083,140.68,140.64,9.77]
[1720480442073,7.493171,140.69,140.65,9.77]
[1720480442274,20.0,140.68,140.65,9.77]
[1720480442479,27.1083,140.68,140.61,0.17]
[1720480442675,27.1083,140.68,140.65,9.77]
[1720480443405,7.1092,140.67,140.61,0.34]
[1720480443591,27.1086,140.68,140.64,9.77]
[1720480444891,20.0,140.68,140.64,9.77]
[1720480445092,20.0,140.68,140.65,9.77]
[1720480445496,27.493171,140.69,140.65,9.77]
[1720480446120,7.1083,140.68,140.61,0.34]
[1720480446293,27.493171,140.69,140.64,9.77]
[1720480447412,7.1084,140.68,140.64,9.77]
[1720480449627,30.155271,140.69,140.64,9.77]
[1720480449813,20.385271,140.69,140.65,9.77]
[1720480450020,0.385271,140.69,140.66,9.77]
[1720480450221,20.385271,140.69,140.66,9.77]
[1720480450833,0.385271,140.69,140.66,9.77]
[1720480451313,7.493071,140.69,140.66,9.77]
[1720480451505,20.0,140.68,140.66,9.77]
[1720480452124,27.493171,140.69,140.66,9.77]
[1720480455327,0.385271,140.69,140.66,9.77]
[1720480455526,0.385271,140.69,140.68,9.77]
[1720480456112,0.385271,140.69,140.67,9.77]
[1720480459839,0.385271,140.69,140.68,9.77]
[1720480460829,7.493071,140.69,140.67,9.77]
[1720480461029,0.385271,140.69,140.67,9.77]
[1720480462823,0.385271,140.69,140.61,0.17]
[1720480463054,0.385271,140.69,140.61,20.34]
[1720480463235,0.385271,140.69,140.67,9.77]
[1720480467442,0.385271,140.69,140.68,9.77]
[1720480470346,0.385271,140.69,140.67,9.77]
[1720480470635,0.385271,140.69,140.66,0.17]
[1720480470842,0.385271,140.69,140.68,9.77]
[1720480471031,0.385271,140.69,140.68,9.94]
[1720480471235,15.8536,140.75,140.69,0.17]
[1720480471437,7.1037,140.77,140.73,9.77]
[1720480471638,12.82197306,140.76,140.73,9.77]
[1720480471836,7.1043,140.76,140.69,0.17]
[1720480472035,7.1043,140.76,140.72,9.77]
[1720480472425,7.1038,140.77,140.73,9.77]
[1720480472628,7.1038,140.77,140.69,0.17]
[1720480472629,12.82245442,140.76,140.69,0.17]
[1720480472852,20.0,140.76,140.69,0.17]
[1720480473037,27.1044,140.76,140.72,9.77]
[1720480473957,27.1044,140.76,140.68,0.34]
[1720480474257,20.0,140.76,140.72,9.77]
[1720480475456,27.1042,140.76,140.72,9.77]
[1720480476145,20.0,140.76,140.72,9.77]
[1720480478651,20.0,140.76,140.73,9.77]
[1720480478857,29.77,140.77,140.72,9.77]
[1720480479729,36.8738,140.77,140.72,9.77]
[1720480479956,20.0,140.77,140.74,9.77]
[1720480480259,20.0,140.77,140.71,0.17]
[1720480480430,20.0,140.77,140.74,9.77]
[1720480480755,20.0,140.77,140.73,9.77]
[1720480481257,27.1039,140.77,140.71,0.17]
[1720480481558,27.1039,140.77,140.73,9.77]
[1720480482064,27.1039,140.77,140.71,0.17]
[1720480482259,27.1039,140.77,140.73,9.77]
[1720480482886,20.0,140.77,140.73,9.77]
[1720480483054,20.0,140.77,140.74,9.77]
[1720480484063,20.0,140.77,140.75,9.77]
[1720480484862,20.0,140.77,140.71,0.17]
[1720480485037,20.0,140.77,140.75,9.77]
[1720480485545,20.0,140.77,140.74,9.77]
[1720480488167,27.1038,140.77,140.74,9.77]
[1720480488559,27.1038,140.77,140.73,9.77]
[1720480489871,27.1038,140.77,140.71,0.17]
[1720480490173,27.1038,140.77,140.73,9.77]
[1720480490388,27.1038,140.77,140.74,9.77]
[1720480491850,20.0,140.77,140.74,9.77]
[1720480493862,20.0,140.77,140.71,6.6055]
[1720480494068,27.1039,140.77,140.73,9.77]
[1720480494972,7.1051,140.75,140.71,9.77]
[1720480495266,35.0454,140.77,140.71,9.77]
[1720480495467,42.1495,140.77,140.73,9.77]
[1720480495775,42.1492,140.77,140.73,9.77]
[1720480496155,35.0454,140.77,140.73,9.77]
[1720480497475,34.5454,140.77,140.73,9.77]
[1720480497679,34.5454,140.77,140.74,9.77]
[1720480498279,34.5454,140.77,140.73,9.77]
[1720480500675,41.6493,140.77,140.73,9.77]
[1720480500882,41.6493,140.77,140.72,0.17]
[1720480501263,51.4193,140.77,140.72,9.94]
[1720480501969,40.6546,140.77,140.65,6.3748]
[1720480502282,16.876,140.73,140.68,9.77]
[1720480502582,16.8754,140.74,140.69,9.77]
[1720480502879,26.3671,140.72,140.67,9.77]
[1720480503271,16.5971,140.72,140.68,9.77]
[1720480503779,7.1072,140.71,140.63,268.4893]
[1720480504079,0.17,140.7,140.58,14.70317054]
[1720480504281,7.1088,140.67,140.62,9.77]
[1720480504591,9.77,140.67,140.58,6.4609]
[1720480504788,16.5971,140.66,140.62,9.77]
[1720480505975,16.5971,140.66,140.63,9.77]
[1720480506167,16.5971,140.66,140.62,9.77]
[1720480507762,16.5971,140.66,140.58,0.17]
[1720480507963,16.5971,140.66,140.58,20.34]
[1720480508178,16.5971,140.66,140.62,9.77]
[1720480508773,16.5971,140.66,140.57,15.0941]
[1720480508774,29.77,140.65,140.57,15.0941]
[1720480508979,36.8799,140.65,140.6,9.77]
[1720480509290,29.77,140.65,140.6,9.77]
[1720480509670,20.0,140.65,140.61,9.77]
[1720480510171,20.0,140.65,140.57,0.17]
[1720480510370,20.0,140.65,140.61,9.77]
[1720480510801,6.233,140.71,140.63,0.17]
[1720480511004,6.233,140.71,140.67,9.77]
[1720480511300,6.233,140.71,140.63,0.17]
[1720480511301,6.233,140.71,140.68,9.77]
[1720480512175,15.0132,140.72,140.68,9.77]
[1720480512380,15.0132,140.72,140.69,9.77]
[1720480512594,16.5507,140.75,140.66,25.7408]
[1720480512903,16.5507,140.75,140.67,0.17]
[1720480513092,16.5507,140.75,140.68,0.17]
[1720480513591,16.0507,140.75,140.68,0.17]
[1720480514386,16.0507,140.75,140.68,30.17]
[1720480514698,16.0507,140.75,140.69,0.17]
[1720480514873,5.6523,140.78,140.69,19.44]
[1720480515075,12.7557,140.78,140.7,0.34]
[1720480515274,7.1039,140.77,140.7,0.34]
[1720480515873,7.1045,140.76,140.7,0.17]
[1720480516075,20.0,140.75,140.7,0.17]
[1720480517814,27.1048,140.75,140.66,6.1308]
[1720480518117,20.0,140.75,140.66,6.1308]
[1720480518418,20.0,140.75,140.67,19.44]
[1720480519003,20.0,140.75,140.68,0.34]
[1720480519292,27.1043,140.76,140.68,0.34]
[1720480519702,20.0,140.76,140.66,6.1308]
[1720480519926,0.17,140.75,140.64,19.44]
[1720480520113,7.1072,140.71,140.64,19.44]
[1720480520618,7.1072,140.71,140.63,6.6481]
[1720480521199,20.0,140.7,140.63,6.6481]
[1720480521383,7.1078,140.69,140.61,19.44]
[1720480521588,27.1074,140.7,140.61,19.44]
[1720480522506,27.1074,140.7,140.62,0.17]
[1720480522687,27.1074,140.7,140.62,0.34]
[1720480523089,0.17,140.69,140.56,6.6481]
[1720480523290,0.34,140.69,140.56,6.6481]
[1720480523522,23.0117,140.64,140.55,488.126037]
[1720480523916,7.1109,140.63,140.55,488.126037]
[1720480524093,23.0117,140.64,140.55,488.126037]
[1720480524819,30.1221,140.64,140.56,0.17]
[1720480525331,23.0117,140.64,140.56,0.17]
[1720480526023,23.0117,140.64,140.56,0.34]
[1720480528026,30.122,140.64,140.56,0.34]
[1720480528231,20.0,140.63,140.56,0.34]
[1720480528911,20.0,140.63,140.55,488.126037]
[1720480529232,7.1121,140.61,140.55,488.126037]
[1720480529632,20.0,140.6,140.55,488.126037]
[1720480530336,20.0,140.61,140.55,488.126037]
[1720480530841,7.113,140.59,140.55,488.126037]
[1720480531206,20.0,140.61,140.55,488.126037]
[1720480531207,0.17,140.57,140.55,454.792837]
[1720480531412,3.7113,140.56,140.55,431.47454824]
[1720480531644,3.8813,140.56,140.55,431.47454824]
[1720480531937,10.9956,140.56,140.55,431.47454824]
[1720480532137,30.9956,140.56,140.55,431.47454824]
[1720480532338,30.6556,140.56,140.55,431.47454824]
[1720480532944,30.8256,140.56,140.55,431.47454824]
[1720480534010,30.9956,140.56,140.55,419.33326333]
[1720480536118,30.8256,140.56,140.55,419.33326333]
[1720480538234,30.8256,140.56,140.55,405.32526333]
[1720480538423,54.02186181,140.56,140.55,387.05080522]
[1720480538756,54.02186181,140.56,140.55,372.83396002]
[1720480543465,54.02186181,140.56,140.55,359.29896002]
[1720480543671,54.02186181,140.56,140.55,340.57542694]
[1720480543839,54.02186181,140.56,140.55,338.66342694]
[1720480544233,54.02186181,140.56,140.55,336.29542694]
[1720480544437,54.02186181,140.56,140.55,334.15542694]
[1720480544839,54.02186181,140.56,140.55,332.01542694]
[1720480546243,34.02186181,140.56,140.55,332.01542694]
[1720480547351,30.48056181,140.56,140.55,332.01542694]
[1720480547551,50.48056181,140.56,140.55,332.01542694]
[1720480550072,30.14056181,140.56,140.55,332.01542694]
[1720480550252,18.45328088,140.56,140.55,332.01542694]
[1720480551769,38.45328088,140.56,140.55,332.01542694]
[1720480557874,38.62328088,140.56,140.55,322.39142694]
[1720480558172,38.79328088,140.56,140.55,318.01142694]
[1720480559294,38.79328088,140.56,140.55,315.87142694]
[1720480560166,58.23328088,140.56,140.55,315.87142694]
[1720480560982,58.23328088,140.56,140.55,313.73142694]
[1720480561277,58.23328088,140.56,140.55,301.99142694]
[1720480561667,58.23328088,140.56,140.55,299.85142694]
[1720480561870,58.23328088,140.56,140.55,297.71064921]
[1720480562051,58.23328088,140.56,140.55,295.56987148]
[1720480564265,38.62328088,140.56,140.55,295.56987148]
[1720480565158,38.45328088,140.56,140.55,295.56987148]
[1720480567367,38.79328088,140.56,140.55,295.56987148]
[1720480567561,38.45328088,140.56,140.55,295.56987148]
[1720480569762,5.80846207,140.59,140.55,311.55877148]
[1720480569967,37.2143,140.66,140.55,311.55877148]
[1720480570159,7.1124,140.6,140.55,311.55877148]
[1720480570382,7.1117,140.62,140.56,0.17]
[1720480570694,54.9794,140.69,140.61,15.9889]
[1720480570695,17.7726,140.67,140.61,15.9889]
[1720480570890,9.73,140.67,140.62,9.73]
[1720480571189,9.73,140.67,140.61,15.9889]
[1720480571489,9.73,140.65,140.61,15.9889]
[1720480571667,16.8403,140.65,140.61,15.9889]
[1720480571865,7.1103,140.65,140.61,15.9889]
[1720480572182,27.1104,140.64,140.61,25.7189]
[1720480572586,27.1104,140.64,140.61,15.9889]
[1720480573873,7.1108,140.63,140.61,15.9889]
[1720480574073,7.1113,140.62,140.61,15.9889]
[1720480575281,7.1108,140.63,140.61,15.9889]
[1720480576382,27.1104,140.64,140.61,15.9889]
[1720480576586,20.0,140.64,140.61,15.9889]
[1720480577188,27.1103,140.64,140.61,15.9889]
[1720480580102,20.0,140.64,140.61,15.9889]
[1720480580676,20.0,140.65,140.61,15.9889]
[1720480581175,27.1098,140.65,140.61,15.9889]
[1720480581578,20.0,140.65,140.61,15.9889]
[1720480581774,20.0,140.69,140.61,15.9889]
[1720480582401,7.1101,140.65,140.61,15.9889]
[1720480582599,20.0,140.64,140.61,15.9889]
[1720480583297,27.1104,140.64,140.61,15.9889]
[1720480584783,7.1109,140.63,140.61,15.9889]
[1720480585186,27.1107,140.64,140.61,15.9889]
[1720480585393,7.1109,140.63,140.61,15.9889]
[1720480585594,27.1104,140.64,140.61,15.9889]
[1720480585896,7.111,140.63,140.61,15.9889]
[1720480587079,7.1113,140.62,140.61,15.9889]
[1720480587280,7.1109,140.63,140.61,15.9889]
[1720480587682,7.1113,140.62,140.61,15.9889]
[1720480588489,27.1113,140.62,140.61,15.9889]
[1720480590981,20.0,140.62,140.61,15.9889]
[1720480591796,27.1113,140.62,140.61,15.9889]
[1720480593412,20.0,140.62,140.61,15.9889]
[1720480593710,27.1113,140.62,140.61,15.9889]
[1720480597503,5.68174347,140.67,140.61,15.9889]
[1720480597702,9.74,140.68,140.63,9.74]
[1720480597921,38.96,140.72,140.63,9.74]
[1720480597922,5.72739144,140.71,140.63,9.74]
[1720480598098,5.72739144,140.71,140.61,15.9889]
[1720480598099,7.1086,140.68,140.64,15.9514]
[1720480598285,7.1086,140.68,140.65,9.74]
[1720480599585,7.1089,140.67,140.65,9.74]
[1720480600196,23.5756075,140.72,140.65,9.74]
[1720480600512,7.1074,140.7,140.67,9.74]
[1720480600693,7.1078,140.69,140.64,6.2114]
[1720480601301,62.27135555,140.77,140.65,16.5534]
[1720480601302,7.1073,140.7,140.65,16.5534]
[1720480601625,7.1068,140.71,140.65,16.5534]
[1720480603708,7.1074,140.7,140.65,16.5534]
[1720480605206,7.1069,140.71,140.65,16.5534]
[1720480605889,7.2756,140.74,140.65,16.5534]
[1720480606095,20.0,140.73,140.65,16.5534]
[1720480606312,7.1066,140.72,140.65,16.5534]
[1720480606509,27.1068,140.71,140.65,16.5534]
[1720480606715,7.1068,140.71,140.65,16.5534]
[1720480610325,7.1064,140.72,140.65,16.5534]
[1720480610542,20.0,140.71,140.66,0.17]
[1720480612728,7.1064,140.72,140.66,0.17]
[1720480613300,70.05048278,140.87,140.68,0.17]
[1720480613301,7.1056,140.74,140.68,0.17]
[1720480613527,7.1056,140.74,140.69,6.1458]
[1720480614412,7.1058,140.73,140.69,6.1458]
[1720480615215,7.1069,140.71,140.67,16.402]
[1720480616529,7.1078,140.69,140.67,16.402]
[1720480616827,0.17,140.74,140.67,16.402]
[1720480617027,12.82846547,140.73,140.67,16.402]
[1720480617211,7.1069,140.71,140.67,16.402]
[1720480620530,7.1069,140.71,140.67,26.122]
[1720480622131,36.8264,140.72,140.67,26.122]
[1720480622436,27.1064,140.72,140.67,26.122]
[1720480623139,20.0,140.72,140.68,9.72]
[1720480623447,20.0,140.72,140.69,9.72]
[1720480623611,20.0,140.72,140.67,16.402]
[1720480623812,20.0,140.72,140.69,9.72]
[1720480625413,7.1054,140.74,140.7,9.72]
[1720480625616,16.8243,140.76,140.71,9.72]
[1720480625913,7.1058,140.73,140.69,9.72]
[1720480626115,7.1054,140.74,140.7,9.72]
[1720480626315,7.1054,140.74,140.71,9.72]
[1720480628625,7.1049,140.75,140.72,31.6181]
[1720480629242,7.1044,140.76,140.72,31.6181]
[1720480629543,7.1038,140.77,140.74,9.72]
[1720480630950,20.0,140.76,140.74,9.72]
[1720480631115,20.0,140.76,140.73,9.72]
[1720480631522,27.1044,140.76,140.73,9.72]
[1720480631823,7.1053,140.74,140.72,15.4205]
[1720480632025,7.1049,140.75,140.72,15.4205]
[1720480632454,36.8244,140.76,140.72,15.4205]
[1720480632626,7.1048,140.75,140.72,15.4205]
[1720480635039,36.8243,140.76,140.72,15.4205]
[1720480635232,20.0,140.76,140.72,15.4205]
[1720480635439,9.72,140.77,140.72,25.1405]
[1720480635745,20.0,140.76,140.72,25.1405]
[1720480636542,27.1042,140.76,140.72,25.1405]
[1720480636747,36.8242,140.76,140.72,15.4205]
[1720480637325,20.0,140.76,140.72,15.4205]
[1720480637527,20.0,140.76,140.73,9.72]
[1720480637737,9.72,140.78,140.73,9.72]
[1720480637938,20.0,140.77,140.73,9.72]
[1720480638146,20.0,140.77,140.74,9.72]
[1720480638828,20.0,140.78,140.74,9.72]
[1720480640424,27.1033,140.78,140.74,9.72]
[1720480640853,20.0,140.78,140.75,9.72]
[1720480641142,20.0,140.78,140.74,9.72]
[1720480641328,27.1032,140.78,140.74,9.72]
[1720480642043,20.0,140.78,140.74,9.72]
[1720480642428,7.1041,140.77,140.73,9.72]
[1720480642823,36.8234,140.78,140.74,0.17]
[1720480643224,36.8234,140.78,140.73,9.72]
[1720480643652,29.72,140.78,140.72,15.4205]
[1720480643825,16.8239,140.77,140.72,25.1405]
[1720480644451,27.1034,140.78,140.72,25.1405]
[1720480644646,36.8234,140.78,140.73,9.72]
[1720480645030,27.1034,140.78,140.73,9.72]
[1720480645349,36.8234,140.78,140.73,9.72]
[1720480645553,27.1034,140.78,140.73,9.72]
[1720480645757,36.8234,140.78,140.73,9.72]
[1720480647160,0.885271,140.83,140.76,9.72]
[1720480647450,7.1018,140.81,140.77,9.72]
[1720480647629,7.1024,140.8,140.76,16.6437]
[1720480647836,7.1024,140.8,140.76,26.3637]
[1720480648441,7.1019,140.81,140.76,26.3637]
[1720480648644,16.8219,140.81,140.76,26.3637]
[1720480648956,0.885271,140.83,140.76,26.3637]
[1720480648957,7.1022,140.8,140.76,26.3637]
[1720480649152,7.1022,140.8,140.76,16.6437]
[1720480649466,16.823,140.79,140.76,16.6437]
[1720480649759,7.103,140.79,140.76,16.6437]
[1720480650060,16.8219,140.81,140.76,26.3637]
[1720480650264,20.0,140.8,140.76,26.3637]
[1720480650563,27.1024,140.8,140.76,26.3637]
[1720480651053,7.1027,140.79,140.76,26.3637]
[1720480651255,27.1023,140.8,140.76,26.3637]
[1720480651843,7.1028,140.79,140.76,16.6437]
[1720480652157,36.8223,140.8,140.76,16.6437]
[1720480652359,27.1023,140.8,140.76,26.3637]
[1720480653269,20.0,140.8,140.76,26.3637]
[1720480653460,7.1018,140.81,140.76,16.6437]
[1720480653658,7.1018,140.81,140.77,9.72]
[1720480653864,0.885271,140.83,140.78,9.72]
[1720480654170,0.885271,140.83,140.76,16.8137]
[1720480654171,0.885271,140.83,140.79,9.72]
[1720480654367,7.986071,140.83,140.79,9.72]
[1720480654562,0.885271,140.83,140.8,9.72]
[1720480655367,0.885271,140.83,140.79,0.17]
[1720480655594,0.885271,140.83,140.81,9.72]
[1720480655745,0.885271,140.83,140.8,9.72]
[1720480656772,0.885271,140.83,140.79,0.17]
[1720480656961,0.885271,140.83,140.77,0.17]
[1720480657273,0.885271,140.83,140.79,9.72]
[1720480657470,0.885271,140.83,140.8,0.17]
[1720480657671,0.885271,140.83,140.79,9.72]
[1720480658247,0.885271,140.83,140.8,0.17]
[1720480659966,0.885271,140.83,140.81,25.2758]
[1720480660162,0.885271,140.83,140.82,9.89]
[1720480660965,0.04222485,140.89,140.83,0.17]
[1720480661275,0.04222485,140.89,140.82,9.89]
[1720480661276,9.72,140.85,140.81,15.6018]
[1720480661478,19.94029457,140.88,140.81,15.6018]
[1720480661657,9.72,140.84,140.81,15.6018]
[1720480661985,16.8203,140.84,140.81,15.6018]
[1720480662160,7.1003,140.84,140.81,15.6018]
[1720480662489,7.0995,140.86,140.82,9.72]
[1720480662661,20.0,140.85,140.82,9.72]
[1720480664061,20.0,140.85,140.81,25.3218]
[1720480664264,9.72,140.84,140.81,15.6018]
[1720480664462,9.72,140.83,140.78,16.6433]
[1720480664876,16.8209,140.83,140.78,16.6433]
[1720480665076,7.1013,140.82,140.78,16.6433]
[1720480665384,9.72,140.8,140.75,9.72]
[1720480665977,9.72,140.78,140.74,16.6433]
[1720480666865,23.7707,140.84,140.75,9.72]
[1720480667188,9.72,140.81,140.75,9.72]
[1720480667367,20.0,140.8,140.75,9.72]
[1720480667560,20.0,140.8,140.76,0.17]
[1720480667760,20.0,140.8,140.77,9.72]
[1720480668283,20.0,140.81,140.77,9.72]
[1720480669157,16.8208,140.83,140.78,9.72]
[1720480669574,7.1003,140.84,140.78,9.72]
[1720480669774,9.72,140.83,140.78,9.72]
[1720480670081,16.8208,140.83,140.78,9.72]
[1720480670379,7.1017,140.81,140.76,9.89]
[1720480670681,7.1017,140.81,140.76,0.17]
[1720480670887,7.1017,140.81,140.75,0.34]
[1720480671183,7.1014,140.82,140.75,0.34]
[1720480671884,7.1003,140.84,140.75,0.34]
[1720480672078,20.0,140.83,140.75,0.34]
[1720480672688,20.0,140.84,140.75,0.34]
[1720480672897,7.1006,140.84,140.75,0.34]
[1720480673061,20.0,140.83,140.75,0.34]
[1720480673691,27.1007,140.83,140.75,0.34]
[1720480674067,7.1012,140.82,140.75,0.34]
[1720480674789,7.1018,140.81,140.75,0.34]
[1720480676273,7.1018,140.81,140.75,0.17]
[1720480676477,7.1028,140.79,140.74,16.6433]
[1720480676887,7.1023,140.8,140.74,16.6433]
[1720480677392,7.1018,140.81,140.74,16.6433]
[1720480677680,20.0,140.8,140.74,16.6433]
[1720480679406,20.0,140.8,140.75,0.17]
[1720480679690,20.0,140.81,140.75,0.34]
[1720480679991,7.1011,140.83,140.75,0.34]
[1720480680186,20.0,140.82,140.75,0.34]
[1720480680380,27.1012,140.82,140.75,0.34]
[1720480680588,20.0,140.86,140.75,0.17]
[1720480680589,7.1023,140.8,140.75,0.17]
[1720480680780,7.1028,140.79,140.74,16.6433]
[1720480680971,7.1032,140.78,140.74,16.6433]
[1720480681689,31.73134739,140.83,140.74,16.6433]
[1720480681991,7.1008,140.83,140.75,6.5281]
[1720480682190,7.1013,140.82,140.76,0.17]
[1720480682386,7.1014,140.82,140.76,0.17]
[1720480682691,35.4328237,140.87,140.76,0.34]
[1720480682993,7.1008,140.83,140.76,0.34]
[1720480683178,20.0,140.82,140.76,0.34]
[1720480683379,20.0,140.86,140.76,0.34]
[1720480683574,7.1011,140.83,140.76,0.34]